bitfinex/quotes_ETHUSD_20251026
["timestamp","ask_amount","ask_price","bid_price","bid_amount"]
[1761471475725,0.001,3989.9,3989.6,0.88162811]
[1761471476023,0.001,3989.9,3989.7,3.413]
[1761471476242,0.001,3989.9,3989.7,3.8431]
[1761471477130,0.001,3989.9,3989.7,3.413]
[1761471478262,0.001,3989.9,3989.4,3.412]
[1761471478441,0.001,3989.9,3989.4,3.8421]
[1761471479566,0.001,3989.9,3989.6,0.50688]
[1761471479788,0.001,3989.9,3989.5,0.4301]
[1761471481587,0.001,3989.9,3989.4,0.88162811]
[1761471481890,0.001,3989.9,3989.6,3.8411]
[1761471482254,0.001,3989.9,3989.7,0.4286]
[1761471483758,0.001,3989.9,3989.8,1.38850811]
[1761471484205,0.001,3989.9,3989.8,1.81710811]
[1761471484704,0.001,3989.9,3989.8,0.93548]
[1761471484908,0.001,3989.9,3989.8,4.99707129]
[1761471485911,0.001,3989.9,3989.8,5.12267129]
[1761471486088,0.001,3989.9,3989.8,6.40633324]
[1761471486965,0.001,3989.9,3989.8,6.73239193]
[1761471487171,0.001,3989.9,3989.8,8.76428614]
[1761471487399,0.001,3989.9,3989.8,7.25101538]
[1761471488222,0.001,3989.9,3989.8,9.01696838]
[1761471491306,0.001,3989.9,3989.8,8.49834493]
[1761471492698,0.001,3989.9,3989.8,8.17228624]
[1761471493209,0.001,3989.9,3989.8,6.65683324]
[1761471493694,0.001,3989.9,3989.8,8.42278624]
[1761471494319,0.001,3989.9,3989.8,6.65683324]
[1761471496545,0.001,3989.9,3989.8,10.38689193]
[1761471496849,0.001,3989.9,3989.8,10.67709674]
[1761471498729,0.001,3989.9,3989.8,10.38689193]
[1761471498919,0.1856,3989.9,3989.7,0.88302662]
[1761471499153,0.1856,3989.9,3988.8,0.429]
[1761471499154,0.2855,3989.9,3989.8,3.403]
[1761471499711,0.1856,3989.9,3989.8,3.403]
[1761471501510,0.001,3989.9,3989.8,3.403]
[1761471503363,0.1,3989.9,3989.8,3.403]
[1761471503545,0.001,3989.9,3989.8,3.403]
[1761471507481,0.001,3989.9,3989.8,8.31177129]
[1761471507650,0.001,3989.9,3989.8,10.68157472]
[1761471507971,0.001,3989.9,3989.8,3.83453993]
[1761471508173,0.001,3989.9,3989.8,5.83781948]
[1761471508373,0.001,3989.9,3989.8,6.26691232]
[1761471508754,0.001,3989.9,3989.8,8.77330361]
[1761471509072,0.001,3989.9,3989.8,8.89890361]
[1761471509277,0.001,3989.9,3989.8,8.01619129]
[1761471509478,0.001,3989.9,3989.8,9.85225199]
[1761471509644,0.001,3989.9,3989.8,11.17679192]
[1761471510842,0.001,3989.9,3989.8,11.68367192]
[1761471511677,0.001,3989.9,3989.8,11.06740842]
[1761471512877,0.001,3989.9,3989.8,9.74286849]
[1761471513284,0.001,3989.9,3989.8,9.99336849]
[1761471514183,0.001,3989.9,3989.8,10.09362301]
[1761471515845,0.001,3989.9,3989.8,11.85957601]
[1761471517182,0.001,3989.9,3989.8,10.09362301]
[1761471519411,0.001,3989.9,3989.8,11.85957601]
[1761471519607,0.001,3989.9,3989.8,10.09362301]
[1761471519810,0.001,3989.9,3989.8,11.85957601]
[1761471520176,0.001,3989.9,3989.8,22.82429765]
[1761471520780,0.001,3989.9,3989.8,18.88756773]
[1761471523419,0.001,3989.9,3989.8,15.37357187]
[1761471523789,0.001,3989.9,3989.8,13.60761887]
[1761471524315,0.001,3989.9,3989.8,15.37357187]
[1761471525119,0.001,3989.9,3989.8,13.60761887]
[1761471526518,0.001,3989.9,3989.8,15.37357187]
[1761471526924,0.001,3989.9,3989.8,13.60761887]
[1761471529419,0.001,3989.9,3989.8,13.59761887]
[1761471531924,0.001,3989.9,3989.8,9.77861887]
[1761471532223,0.001,3989.9,3989.8,13.16861887]
[1761471532592,0.001,3989.9,3989.8,13.49467756]
[1761471532917,0.001,3989.9,3989.8,13.95997756]
[1761471533316,0.001,3989.9,3989.8,13.49267756]
[1761471535718,0.001,3989.9,3989.8,13.95797756]
[1761471537126,0.001,3989.9,3989.8,17.47197342]
[1761471538909,0.001,3989.9,3989.8,17.76217823]
[1761471539638,0.001,3989.9,3989.8,9.14613887]
[1761471539854,0.001,3989.9,3989.8,12.43088435]
[1761471540729,0.001,3989.9,3989.8,14.20122238]
[1761471541105,0.001,3989.9,3989.8,12.43088435]
[1761471541852,0.001,3989.9,3989.8,12.86038435]
[1761471542346,0.001,3989.9,3989.8,16.88126021]
[1761471542544,0.001,3989.9,3989.8,13.98352785]
[1761471544044,0.001,3989.9,3989.8,17.49752371]
[1761471544234,0.001,3989.9,3989.8,13.98352785]
[1761471544556,0.001,3989.9,3989.8,13.55402785]
[1761471545827,0.001,3989.9,3989.8,17.49752371]
[1761471546026,0.001,3989.9,3989.8,13.98352785]
[1761471547548,0.001,3989.9,3989.8,13.26382304]
[1761471547753,0.001,3989.9,3989.8,16.7778189]
[1761471547960,0.001,3989.9,3989.8,16.5273189]
[1761471548251,0.001,3989.9,3989.8,13.44282304]
[1761471549375,0.1,3990.6,3990.5,2.50595163]
[1761471549376,0.001,3990.6,3990.5,2.50595163]
[1761471549524,0.001,3990.6,3990.5,10.73284659]
[1761471549722,0.001,3990.6,3990.5,10.83338708]
[1761471549931,0.001,3990.6,3990.5,10.50732839]
[1761471550123,0.001,3990.6,3990.5,7.12632839]
[1761471550450,0.1,3990.6,3990.5,7.01959586]
[1761471550955,0.001,3990.6,3990.5,3.63959586]
[1761471551171,0.1,3990.6,3990.5,8.22205243]
[1761471551824,0.001,3990.6,3990.5,7.34800406]
[1761471552131,0.1,3990.6,3990.5,8.22205243]
[1761471552326,0.1,3990.6,3990.5,10.72800406]
[1761471552327,0.001,3990.6,3990.5,10.72800406]
[1761471552756,0.001,3990.6,3990.5,11.50585611]
[1761471553344,0.001,3990.6,3990.5,8.99990448]
[1761471553545,0.001,3990.6,3990.5,11.50585611]
[1761471554123,0.001,3990.6,3990.5,10.17779954]
[1761471554726,0.001,3990.6,3990.5,11.44618592]
[1761471555149,0.001,3990.6,3990.5,8.94023429]
[1761471555468,0.001,3990.6,3990.5,9.00443474]
[1761471555671,0.001,3990.6,3990.5,11.51038637]
[1761471555865,0.001,3990.6,3990.5,11.73299954]
[1761471556447,0.001,3990.6,3990.5,13.50327499]
[1761471557852,0.001,3990.6,3990.5,13.93737499]
[1761471558052,0.001,3990.6,3990.5,15.66802652]
[1761471558264,0.001,3990.6,3990.5,13.89775107]
[1761471558867,0.001,3990.6,3990.5,15.66802652]
[1761471559264,0.001,3990.6,3990.5,13.89775107]
[1761471559466,0.001,3990.6,3990.5,15.66802652]
[1761471559689,0.001,3990.6,3990.5,13.89775107]
[1761471560687,0.001,3990.6,3990.5,15.97743621]
[1761471561066,0.001,3990.6,3990.5,16.10303621]
[1761471561457,0.001,3990.6,3990.5,14.33276076]
[1761471561658,0.001,3990.6,3990.5,16.4290949]
[1761471562286,0.001,3990.6,3990.5,16.9359749]
[1761471563990,0.001,3990.6,3990.5,15.26593261]
[1761471564187,0.001,3990.6,3990.5,14.83183261]
[1761471564390,0.001,3990.6,3990.5,17.0395403]
[1761471565059,0.001,3990.7,3990.6,4.56796883]
[1761471565381,0.001,3990.7,3990.6,5.50872239]
[1761471565781,0.001,3990.7,3990.6,2.06208]
[1761471566097,0.1,3990.7,3990.6,3.372]
[1761471566590,0.1,3990.7,3990.4,1.43042985]
[1761471566789,0.1,3990.7,3990.6,3.372]
[1761471567090,0.1,3990.7,3990.4,1.33017935]
[1761471567294,0.1,3990.7,3990.5,3.372]
[1761471567592,0.1,3990.7,3990.6,0.88657321]
[1761471569503,0.1,3990.7,3990.5,3.372]
[1761471569663,0.1,3990.7,3990.4,0.88657321]
[1761471569864,0.1,3990.7,3990.5,3.371]
[1761471570885,0.1,3990.7,3990.5,4.25757321]
[1761471571789,0.1,3990.7,3990.5,3.371]
[1761471571984,0.1,3990.7,3990.5,4.25757321]
[1761471572412,0.1,3990.7,3990.5,3.371]
[1761471572794,0.001,3990.7,3990.6,4.29184791]
[1761471573123,0.001,3990.7,3990.6,4.31690679]
[1761471573580,0.001,3990.7,3990.6,5.20348]
[1761471573785,0.001,3990.7,3990.6,5.17842112]
[1761471574105,0.001,3990.7,3990.6,5.63043304]
[1761471574484,0.001,3990.7,3990.6,9.69152187]
[1761471574696,0.001,3990.7,3990.6,11.02170122]
[1761471574899,0.001,3990.7,3990.6,10.12562187]
[1761471575492,0.001,3990.7,3990.6,9.69152187]
[1761471576002,0.001,3990.7,3990.6,9.81712187]
[1761471576680,0.001,3990.7,3990.6,9.91736458]
[1761471579344,0.001,3990.7,3990.6,10.36906458]
[1761471580139,0.001,3990.7,3990.6,9.91736458]
[1761471581938,0.001,3990.7,3990.6,10.36906458]
[1761471582310,0.001,3990.7,3990.6,9.91736458]
[1761471582846,0.001,3991.1,3991.0,0.50688]
[1761471583045,0.001,3991.1,3991.0,12.22456559]
[1761471583247,0.001,3991.1,3991.0,12.67626559]
[1761471583627,0.001,3991.1,3991.0,12.77648569]
[1761471583823,0.001,3991.1,3991.0,1.6554201]
[1761471584028,0.001,3991.1,3991.0,13.14523085]
[1761471584250,0.001,3991.1,3991.0,13.13142878]
[1761471585154,0.001,3991.1,3991.0,9.76742878]
[1761471585342,0.1,3991.1,3991.0,3.363]
[1761471585547,0.1,3991.1,3991.0,4.24794592]
[1761471586067,0.1,3991.1,3991.0,0.02505637]
[1761471586452,0.1,3991.1,3990.6,0.88494592]
[1761471586654,0.1,3991.1,3990.7,3.362]
[1761471592929,0.2256,3991.1,3990.7,3.362]
[1761471593464,0.099,3991.0,3990.7,3.362]
[1761471594826,0.099,3991.0,3990.6,0.002]
[1761471595350,0.50688,3990.9,3990.6,0.002]
[1761471595551,0.099,3990.8,3990.6,0.002]
[1761471595934,0.50688,3990.7,3990.6,0.002]
[1761471596134,1.46666079,3990.7,3990.6,0.002]
[1761471596453,5.02396156,3990.7,3990.6,0.002]
[1761471596763,9.0849876,3990.7,3990.6,0.002]
[1761471596954,11.7229876,3990.7,3990.6,0.002]
[1761471597171,9.0849876,3990.7,3990.6,0.002]
[1761471598057,6.57916156,3990.7,3990.6,0.002]
[1761471599076,6.55202836,3990.7,3990.6,0.002]
[1761471599754,9.0578544,3990.7,3990.6,0.002]
[1761471600145,13.34870231,3990.7,3990.6,0.002]
[1761471601648,6.55102836,3990.7,3990.6,0.002]
[1761471602090,3.19402836,3990.7,3990.6,0.002]
[1761471602384,3.55530077,3990.7,3990.6,0.002]
[1761471603846,5.11050077,3990.7,3990.6,0.002]
[1761471604509,0.10030077,3990.7,3990.6,0.002]
[1761471604787,0.001,3991.1,3990.6,0.4757]
[1761471605088,0.001,3991.1,3990.6,0.6013]
[1761471605089,0.1266,3991.1,3990.6,0.6013]
[1761471605295,0.1266,3991.1,3990.6,0.002]
[1761471605296,0.1,3991.1,3990.6,0.002]
[1761471605506,0.50688,3990.9,3990.6,0.002]
[1761471605860,0.099,3990.8,3990.6,0.002]
[1761471608104,0.001,3991.1,3990.6,0.002]
[1761471608601,0.099,3991.0,3990.7,0.10026205]
[1761471609367,0.001,3991.1,3990.7,0.10026205]
[1761471609679,0.1,3991.1,3990.7,0.10026205]
[1761471610396,0.001,3991.1,3990.7,0.10026205]
[1761471613911,0.001,3991.1,3990.7,0.57266205]
[1761471614081,0.001,3991.1,3990.7,0.10026205]
[1761471614282,0.099,3991.0,3990.7,0.10026205]
[1761471615506,0.1256,3990.9,3990.7,0.10026205]
[1761471616224,0.099,3990.8,3990.7,0.10026205]
[1761471617516,0.1256,3990.9,3990.7,0.10026205]
[1761471617728,0.001,3991.1,3990.7,0.10026205]
[1761471619198,0.099,3991.0,3990.7,0.10026205]
[1761471620510,0.099,3991.0,3990.6,0.002]
[1761471620838,0.79541867,3991.0,3990.6,0.002]
[1761471621132,0.50688,3990.9,3990.6,0.002]
[1761471621347,0.099,3990.8,3990.6,0.002]
[1761471623133,0.69641867,3991.0,3990.6,0.002]
[1761471623341,0.001,3991.1,3990.6,0.002]
[1761471623634,0.001,3991.1,3990.7,0.4724]
[1761471624207,0.50688,3991.0,3990.6,0.002]
[1761471624600,0.099,3990.9,3990.6,0.002]
[1761471625141,0.50688,3990.8,3990.6,0.002]
[1761471625441,0.216108,3990.7,3990.6,0.002]
[1761471625638,0.315108,3990.7,3990.6,0.002]
[1761471627238,1.870308,3990.7,3990.6,0.002]
[1761471627822,1.995908,3990.7,3990.6,0.002]
[1761471629906,1.896908,3990.7,3990.6,0.002]
[1761471630109,1.995908,3990.7,3990.6,0.002]
[1761471631648,5.91897474,3990.7,3990.6,0.002]
[1761471631946,6.01797474,3990.7,3990.6,0.002]
[1761471632339,8.52380078,3990.7,3990.6,0.002]
[1761471632517,11.16180078,3990.7,3990.6,0.002]
[1761471633044,11.16180078,3990.7,3990.3,0.002]
[1761471633045,5.65089443,3990.4,3990.3,0.002]
[1761471633225,10.55109443,3990.4,3990.3,0.002]
[1761471633421,14.16528117,3990.4,3990.3,0.002]
[1761471633750,18.35500824,3990.4,3990.3,0.002]
[1761471633907,14.8398215,3990.4,3990.3,0.002]
[1761471634126,16.15481958,3990.4,3990.3,0.002]
[1761471634670,16.8284345,3990.4,3990.3,0.002]
[1761471634960,20.34362124,3990.4,3990.3,0.002]
[1761471635133,7.20615723,3990.3,3990.2,0.002]
[1761471635333,7.97836572,3990.3,3990.2,0.002]
[1761471635533,10.29450686,3990.3,3990.2,0.002]
[1761471636130,9.62129837,3990.3,3990.2,0.002]
[1761471636556,19.0326936,3990.3,3990.2,0.002]
[1761471637065,12.45841837,3990.3,3990.2,0.002]
[1761471637239,15.97360511,3990.3,3990.2,0.002]
[1761471637939,16.48048511,3990.3,3990.2,0.002]
[1761471640149,16.48148511,3990.3,3990.2,0.002]
[1761471641946,15.97360511,3990.3,3990.2,0.002]
[1761471642153,2.31714114,3990.3,3990.2,0.002]
[1761471642337,0.001,3990.3,3990.2,0.002]
[1761471642539,3.344,3990.3,3990.2,0.002]
[1761471642789,0.001,3990.3,3990.2,0.002]
[1761471642936,3.344,3990.3,3990.2,0.002]
[1761471643265,3.4696,3990.3,3990.2,0.002]
[1761471643572,0.47356,3990.3,3990.2,0.002]
[1761471643736,3.4696,3990.3,3990.2,0.002]
[1761471643939,3.4686,3990.3,3990.2,0.002]
[1761471644144,5.0238,3990.3,3990.2,0.002]
[1761471644750,5.0238,3990.3,3990.2,0.4445]
[1761471644751,0.1266,3990.3,3990.2,0.4445]
[1761471646885,0.001,3990.3,3990.2,0.4695614]
[1761471647044,0.001,3990.3,3990.2,0.86501481]
[1761471647365,0.001,3990.3,3990.2,4.38020155]
[1761471647740,0.001,3990.3,3990.2,4.40526295]
[1761471647947,0.001,3990.3,3990.2,0.99061481]
[1761471654280,0.001,3990.3,3990.2,0.5701]
[1761471659415,0.001,3990.3,3990.2,3.07624004]
[1761471661167,0.001,3990.3,3990.2,4.63144004]
[1761471661780,0.001,3990.7,3990.6,2.50588883]
[1761471662067,0.001,3991.4,3990.6,2.50588883]
[1761471662068,0.001,3991.4,3991.3,4.56752935]
[1761471662382,0.001,3992.7,3991.3,4.56752935]
[1761471662383,0.001,3992.7,3991.8,2.50513552]
[1761471662575,0.001,3992.7,3991.8,5.84013552]
[1761471662775,0.001,3992.7,3991.8,9.82042226]
[1761471664693,0.001,3992.7,3991.8,6.30523552]
[1761471665789,0.001,3992.7,3991.3,0.73237043]
[1761471665991,0.001,3992.7,3991.2,0.2331]
[1761471665992,0.103,3992.6,3991.2,0.2331]
[1761471666205,0.103,3992.6,3991.4,0.4651]
[1761471667001,0.103,3992.6,3991.2,0.2331]
[1761471667002,0.103,3992.2,3991.2,0.2331]
[1761471667166,0.103,3992.2,3990.5,1.5552]
[1761471667167,0.103,3992.2,3990.7,2.50580989]
[1761471667372,0.001,3992.7,3990.2,0.002]
[1761471667373,0.104,3991.9,3990.3,0.4651]
[1761471667905,0.104,3991.9,3990.2,3.335]
[1761471668114,0.50688,3991.8,3990.2,3.335]
[1761471668413,0.50688,3991.8,3990.3,0.4651]
[1761471668614,0.103,3991.7,3990.3,0.4651]
[1761471669093,0.001,3991.9,3990.4,0.02506014]
[1761471669305,0.001,3991.9,3990.3,3.39803546]
[1761471669476,0.001,3991.9,3990.4,2.97110418]
[1761471669913,0.001,3991.9,3990.5,2.9961021]
[1761471670103,0.001,3991.9,3990.7,2.50582604]
[1761471670295,0.001,3991.9,3990.8,4.34728904]
[1761471670678,0.001,3991.9,3990.9,0.4651]
[1761471671225,0.001,3991.9,3991.0,2.50558331]
[1761471671519,0.001,3991.9,3991.1,3.332]
[1761471672015,0.1256,3991.7,3991.1,3.4576]
[1761471672214,0.1256,3991.7,3991.1,3.6885]
[1761471672792,0.1256,3991.7,3991.1,4.1536]
[1761471672987,0.1256,3991.7,3991.1,4.4042]
[1761471673213,0.1256,3991.7,3991.1,4.1536]
[1761471674130,0.1256,3991.7,3991.2,0.49015512]
[1761471674803,0.001,3991.9,3991.5,0.1256]
[1761471675185,0.001,3991.9,3991.6,0.4651]
[1761471677846,0.001,3991.9,3991.7,0.1256]
[1761471684742,0.001,3991.9,3991.7,0.5907]
[1761471684952,0.001,3991.9,3991.7,0.1256]
[1761471688318,0.001,3991.9,3991.7,0.5907]
[1761471688912,0.001,3991.9,3991.7,0.1256]
[1761471691353,0.001,3991.9,3991.6,3.33]
[1761471693257,0.001,3991.9,3991.5,3.4526]
[1761471694518,0.001,3991.9,3991.5,0.1276]
[1761471694948,0.001,3991.9,3991.8,0.1256]
[1761471695145,0.001,3991.9,3991.8,3.324]
[1761471698185,0.001,3991.9,3991.8,3.34905135]
[1761471698400,0.001,3991.9,3991.8,4.37819672]
[1761471698550,0.001,3991.9,3991.8,6.90838359]
[1761471698749,0.001,3991.9,3991.8,7.76267084]
[1761471700275,0.001,3991.9,3991.8,7.88827084]
[1761471701197,0.001,3991.9,3991.8,7.00893224]
[1761471705359,0.001,3991.9,3991.8,7.89243628]
[1761471705690,0.001,3991.9,3991.8,7.43643628]
[1761471705893,0.001,3991.9,3991.8,7.89243628]
[1761471706183,0.001,3991.9,3991.8,7.00893224]
[1761471706357,0.001,3991.9,3991.8,7.89238462]
[1761471706559,0.001,3991.9,3991.8,7.88938462]
[1761471708389,0.001,3991.9,3991.8,0.72379672]
[1761471708688,0.001,3991.9,3991.8,3.319]
[1761471709886,0.001,3991.9,3991.5,0.002]
[1761471710058,0.1064,3991.9,3991.5,3.321]
[1761471712710,0.001,3991.9,3991.5,3.321]
[1761471713806,0.1054,3991.8,3991.5,3.321]
[1761471714283,0.001,3991.9,3991.5,3.321]
[1761471716406,0.1064,3991.9,3991.5,3.321]
[1761471717270,0.1054,3991.8,3991.5,0.002]
[1761471717470,0.1064,3991.9,3991.5,0.002]
[1761471718573,0.1256,3991.7,3991.5,0.002]
[1761471721807,0.001,3991.9,3991.6,6.28291365]
[1761471721978,0.001,3991.9,3991.7,1.08259459]
[1761471722174,0.001,3991.9,3991.8,2.63073552]
[1761471722424,0.001,3991.9,3991.8,3.06833552]
[1761471722626,0.001,3991.9,3991.8,3.40254918]
[1761471722822,0.001,3991.9,3991.8,4.99508757]
[1761471725306,0.001,3991.9,3991.8,5.02013892]
[1761471725693,0.001,3991.9,3991.8,4.99508757]
[1761471725893,0.001,3991.9,3991.8,4.66087391]
[1761471727433,0.001,3991.9,3991.8,4.68592526]
[1761471728530,0.001,3991.9,3991.8,4.66087391]
[1761471728731,0.001,3991.9,3991.8,4.68592526]
[1761471729300,0.001,3991.9,3991.8,4.22327391]
[1761471729536,0.001,3991.9,3991.8,0.1256]
[1761471729724,0.001,3991.9,3991.8,3.4376]
[1761471730701,0.001,3992.3,3992.2,2.50488452]
[1761471730901,0.001,3992.3,3992.2,15.77697936]
[1761471731134,0.001,3992.3,3992.2,18.11060507]
[1761471731320,0.001,3992.7,3992.6,2.50463357]
[1761471731507,0.001,3992.7,3992.6,12.16922605]
[1761471731845,0.001,3992.7,3992.6,13.9639289]
[1761471732250,0.001,3992.7,3992.6,14.77774252]
[1761471732545,0.001,3992.7,3992.6,15.05072652]
[1761471732725,0.001,3992.7,3992.6,10.76021404]
[1761471734868,0.001,3992.7,3992.6,10.11082317]
[1761471736151,0.001,3992.7,3992.6,10.99021554]
[1761471736455,0.001,3992.7,3992.6,11.39538679]
[1761471736758,0.001,3992.7,3992.6,10.51599442]
[1761471736919,0.001,3992.7,3992.6,11.39529606]
[1761471738920,0.001,3992.7,3992.6,11.02287442]
[1761471739551,0.001,3992.7,3992.6,9.91559119]
[1761471740276,0.001,3992.7,3992.6,10.32076244]
[1761471740631,0.001,3992.7,3992.6,10.44636244]
[1761471742843,0.001,3992.7,3992.6,10.85931694]
[1761471745064,0.001,3992.7,3992.6,10.45414569]
[1761471746776,0.001,3992.7,3992.6,10.81345704]
[1761471747347,0.001,3992.7,3992.6,12.13415066]
[1761471749247,0.001,3992.7,3992.6,11.68695066]
[1761471749447,0.001,3992.7,3992.6,12.13415066]
[1761471749849,0.1045,3992.7,3992.6,5.37008]
[1761471750053,0.1045,3992.7,3991.8,1.76174214]
[1761471750054,0.1045,3992.7,3992.5,0.40736438]
[1761471750282,0.1045,3992.7,3991.5,0.002]
[1761471750283,0.1045,3992.7,3991.7,3.305]
[1761471750486,0.1045,3992.7,3991.5,0.002]
[1761471750853,0.1045,3992.7,3991.5,3.306]
[1761471751254,0.50688,3992.6,3991.5,0.002]
[1761471751482,0.50688,3992.3,3991.5,0.002]
[1761471751680,1.5552,3992.0,3991.5,0.002]
[1761471751883,0.50688,3992.1,3991.5,0.002]
[1761471752068,0.50688,3991.9,3991.5,0.002]
[1761471752452,0.1026,3992.0,3991.5,0.002]
[1761471752453,0.1026,3991.8,3991.5,0.002]
[1761471756808,3.01214104,3991.6,3991.5,0.002]
[1761471756995,4.2778741,3991.6,3991.5,0.002]
[1761471757183,5.9356741,3991.6,3991.5,0.002]
[1761471758305,8.44093514,3991.6,3991.5,0.002]
[1761471759892,6.0612741,3991.6,3991.5,0.002]
[1761471762609,8.56653514,3991.6,3991.5,0.002]
[1761471766897,3.01239212,3991.2,3991.1,0.002]
[1761471767097,15.61973209,3991.2,3991.1,0.002]
[1761471767834,3.01264325,3990.8,3990.7,0.002]
[1761471768000,7.86984325,3990.8,3990.7,0.002]
[1761471768337,8.08924325,3990.8,3990.7,0.002]
[1761471768534,9.14873565,3990.8,3990.7,0.002]
[1761471768845,9.14873565,3990.8,3990.1,0.002]
[1761471768846,3.01289443,3990.4,3990.1,0.002]
[1761471769140,13.9624344,3990.4,3990.1,0.002]
[1761471769301,15.6166344,3990.4,3990.1,0.002]
[1761471769514,20.74305103,3990.4,3990.1,0.002]
[1761471771518,4.56834566,3990.0,3989.9,0.002]
[1761471771718,2.06208,3989.9,3988.1,0.002]
[1761471771913,15.51813691,3989.6,3988.1,0.002]
[1761471772225,20.63148973,3989.6,3988.1,0.002]
[1761471772420,20.83084083,3989.6,3988.1,0.002]
[1761471772955,20.83184083,3989.6,3988.1,0.002]
[1761471774109,4.56865977,3989.5,3988.1,0.002]
[1761471774320,5.92731903,3989.5,3988.1,0.002]
[1761471775114,3.42073926,3989.5,3988.1,0.002]
[1761471775378,0.099,3990.9,3989.2,0.223]
[1761471775646,0.099,3990.6,3989.5,0.002]
[1761471775848,1.91,3990.3,3989.5,0.002]
[1761471776013,0.50688,3990.2,3989.6,0.4593]
[1761471776215,1.91,3990.3,3989.6,0.4593]
[1761471776552,0.60608,3990.2,3989.5,0.002]
[1761471776751,4.56859694,3989.6,3989.5,0.002]
[1761471776961,7.99519694,3989.6,3989.5,0.002]
[1761471777164,10.73039694,3989.6,3989.5,0.002]
[1761471778757,8.22388,3989.6,3989.5,0.002]
[1761471779059,10.01173894,3989.6,3989.5,0.002]
[1761471780043,7.406022,3989.6,3989.5,0.002]
[1761471780250,5.48868,3989.6,3989.5,0.002]
[1761471783256,3.4256,3989.6,3989.5,0.002]
[1761471783971,5.48768,3989.6,3989.5,0.002]
[1761471784872,7.96779694,3989.6,3989.5,0.002]
[1761471785840,4.56865977,3989.5,3989.4,0.002]
[1761471786077,7.2697904,3989.5,3989.4,0.002]
[1761471786483,7.3701415,3989.5,3989.4,0.002]
[1761471786847,7.2697904,3989.5,3989.4,0.002]
[1761471787387,7.2697904,3989.5,3989.1,0.002]
[1761471787388,15.51838824,3989.2,3989.1,0.002]
[1761471787551,18.81738824,3989.2,3989.1,0.002]
[1761471787872,21.29862148,3989.2,3989.1,0.002]
[1761471790172,7.74311324,3989.2,3989.1,0.002]
[1761471790339,10.34908151,3989.2,3989.1,0.002]
[1761471792279,12.98508151,3989.2,3989.1,0.002]
[1761471794950,13.11068151,3989.2,3989.1,0.002]
[1761471796760,4.56971324,3989.2,3989.1,0.002]
[1761471796960,5.48668,3989.2,3989.1,0.002]
[1761471797671,2.18768,3989.2,3989.1,0.6837]
[1761471797876,5.48568,3989.2,3989.1,0.6837]
[1761471798476,5.48568,3989.2,3989.1,0.2252]
[1761471799249,5.48568,3989.2,3989.1,0.6837]
[1761471799475,3.298,3989.3,3989.1,0.6837]
[1761471799678,3.298,3989.3,3989.2,0.4585]
[1761471799879,4.8532,3989.3,3989.2,0.4585]
[1761471801380,0.001,3989.6,3989.2,0.4585]
[1761471801719,2.633,3989.5,3989.2,0.4585]
[1761471803585,2.633,3989.5,3989.3,0.4585]
[1761471804433,3.296,3989.5,3989.3,0.4585]
[1761471809403,0.1256,3989.4,3989.3,0.4585]
[1761471813204,0.001,3989.5,3989.3,0.4585]
[1761471813409,0.1266,3989.5,3989.3,0.4585]
[1761471815720,0.001,3989.5,3989.3,0.4585]
[1761471815924,0.001,3989.5,3989.3,0.79010757]
[1761471816433,0.001,3989.5,3989.4,2.9651426]
[1761471816622,0.001,3989.5,3989.4,3.0907426]
[1761471817757,0.001,3989.5,3989.4,0.5841]
[1761471818329,0.001,3989.5,3989.4,0.4585]
[1761471822046,0.001,3989.5,3989.4,0.79011103]
[1761471822371,0.001,3989.5,3989.4,0.5841]
[1761471822577,0.001,3989.5,3989.4,0.4585]
[1761471822781,0.001,3989.5,3989.4,0.5841]
[1761471822949,0.001,3989.5,3989.4,3.0907426]
[1761471823475,0.001,3989.5,3989.4,0.4585]
[1761471827080,0.001,3989.5,3989.1,0.2252]
[1761471827243,0.001,3989.5,3989.2,0.4419]
[1761471828376,0.001,3989.5,3989.3,0.002]
[1761471828547,0.50688,3989.4,3989.3,0.002]
[1761471828742,5.35208,3989.4,3989.3,0.002]
[1761471828980,5.390508,3989.4,3989.3,0.002]
[1761471831462,7.8971506,3989.4,3989.3,0.002]
[1761471831662,5.996388,3989.4,3989.3,0.002]
[1761471832353,8.5030306,3989.4,3989.3,0.002]
[1761471833679,5.897388,3989.4,3989.3,0.002]
[1761471835484,5.996388,3989.4,3989.3,0.002]
[1761471835780,5.897388,3989.4,3989.3,0.002]
[1761471836304,8.5030306,3989.4,3989.3,0.002]
[1761471837112,8.6286306,3989.4,3989.3,0.002]
[1761471841774,8.5296306,3989.4,3989.3,0.002]
[1761471842103,6.022988,3989.4,3989.3,0.002]
[1761471844617,8.5296306,3989.4,3989.3,0.002]
[1761471844984,6.022988,3989.4,3989.3,0.002]
[1761471845207,8.5296306,3989.4,3989.3,0.002]
[1761471845398,6.022988,3989.4,3989.3,0.002]
[1761471846034,6.019988,3989.4,3989.3,0.002]
[1761471846820,6.020988,3989.4,3989.3,0.002]
[1761471847514,8.5276306,3989.4,3989.3,0.002]